fUSD/lending_fUSD_20250519
["ID","MTS","AMOUNT","RATE_DAILY","PERIOD"]
[361586904,1747625459168,-400.0,0.00013698,2]
[361586905,1747625459294,-9.69404754,0.00013808,2]
[361586906,1747625459316,-228.56623282,0.00013808,2]
[361586907,1747625459326,-1073.15,0.00013808,2]
[361586908,1747625459335,-1025.5795043,0.00013808,2]
[361586909,1747625459346,-341.2504957,0.00013808,2]
[361586910,1747625459355,-331.29541745,0.00013808,2]
[361586911,1747625459367,-581.27458255,0.00013808,2]
[361586912,1747625459375,-22.52541745,0.00013808,2]
[361586913,1747625459399,-377.47458255,0.00013808,2]
[361586914,1747625459408,-400.0,0.00013808,2]
[361586915,1747625459417,-167.95462307,0.00013808,2]
[361586916,1747625459426,-420.0,0.00013816,2]
[361586917,1747625459435,-1317.21195058,0.00013833,2]
[361586918,1747625459444,-1189.58758791,0.00013833,2]
[361586919,1747625459455,-2457.75607501,0.00013833,2]
[361586920,1747625459464,-730.0,0.00013845,2]
[361586921,1747625459473,-200.0,0.00013847,2]
[361586922,1747625459483,-150.0,0.00013848,2]
[361586923,1747625459492,-1680.0,0.00013851,2]
[361586924,1747625459502,-376.90671666,0.00013852,2]
[361586925,1747625459511,-2356.7875619,0.00013859,2]
[361586926,1747625459520,-1317.21195058,0.00013866,2]
[361586927,1747625459529,-3647.34366292,0.00013866,2]
[361586928,1747625459538,-500.0,0.00013873,2]
[361586929,1747625459547,-500.9107837,0.00013873,2]
[361586930,1747625459556,-500.95070819,0.00013873,2]
[361586931,1747625459566,-500.0,0.00013873,2]
[361586932,1747625459576,-501.63359675,0.00013873,2]
[361586933,1747625459585,-503.72748676,0.00013873,2]
[361586934,1747625459594,-83.49167214,0.00013873,2]
[361586935,1747625459622,-417.2924659,0.00013873,2]
[361586936,1747625459633,-505.18117415,0.00013873,2]
[361586937,1747625459643,-505.72432449,0.00013873,2]
[361586938,1747625459652,-500.0,0.00013873,2]
[361586939,1747625459661,-500.39805272,0.00013873,2]
[361586940,1747625459670,-500.0,0.00013873,2]
[361586941,1747625459680,-61.90398274,0.00013873,2]
[361586942,1747625459697,-438.09601726,0.00013873,2]
[361586943,1747625459707,-152.71682201,0.00013873,2]
[361586944,1747625459716,-501.09827647,0.00013873,2]
[361586945,1747625459725,-500.75243385,0.00013873,2]
[361586946,1747625459735,-500.86829455,0.00013873,2]
[361586947,1747625459744,-509.75877445,0.00013873,2]
[361586948,1747625459753,-437.40404874,0.00013879,2]
[361586949,1747625459765,-882.93095126,0.00013879,2]
[361586950,1747625459774,-588.822,0.00013879,2]
[361586951,1747625459783,-1459.0,0.00013879,2]
[361586952,1747625459792,-563.112,0.00013879,2]
[361586953,1747625459801,-982.865,0.00013879,2]
[361586954,1747625459811,-1308.0,0.00013879,2]
[361586955,1747625459820,-944.748,0.00013879,2]
[361586956,1747625459830,-154.0,0.00013879,2]
[361586957,1747625459840,-150.0,0.0001389,2]
[361586958,1747625459849,-255.0,0.00013894,2]
[361586959,1747625459863,-376.90671666,0.000139,2]
[361586960,1747625459873,-161.79603707,0.000139,2]
[361586961,1747625459882,-4896.3991311,0.000139,2]
[361586962,1747625459894,-6702.04815491,0.000139,2]
[361586963,1747625459954,-673.9999555,0.000139,2]
[361586964,1747625459965,-227.55275849,0.000139,2]
[361586965,1747625459974,-777.34340484,0.000139,2]
[361586966,1747625459985,-10741.53600014,0.000139,2]
[361586967,1747625459994,-238.0,0.000139,2]
[361586968,1747625460003,-227.6650682,0.000139,2]
[361586969,1747625460013,-1317.21195058,0.000139,2]
[361586970,1747625460022,-791.0,0.000139,2]
[361586971,1747625460032,-175.22212601,0.000139,2]
[361586972,1747625460042,-1734.0,0.000139,2]
[361586973,1747625460052,-3647.34366292,0.000139,2]
[361586974,1747625460061,-4933.89305367,0.000139,2]
[361586975,1747625460071,-500.0,0.00013916,2]
[361586976,1747625460080,-500.0,0.00013916,2]
[361586977,1747625460089,-353.22,0.00013916,2]
[361586978,1747625460098,-901.82,0.00013916,2]
[361586979,1747625460107,-901.82,0.00013916,2]
[361586980,1747625460116,-901.82,0.00013916,2]
[361586981,1747625460126,-151.0,0.00013917,2]
[361586982,1747625460135,-151.0,0.00013917,2]
[361586983,1747625460144,-151.0,0.00013917,2]
[361586984,1747625460154,-153.162686,0.00013917,2]
[361586985,1747625460164,-151.084404,0.00013917,2]
[361586986,1747625460173,-151.0,0.00013917,2]
[361586987,1747625460183,-151.0,0.00013917,2]
[361586988,1747625460192,-152.159025,0.00013917,2]
[361586989,1747625460201,-3592.935009,0.00013917,2]
[361586990,1747625460210,-500.0,0.00013917,2]
[361586991,1747625460219,-500.0,0.00013917,2]
[361586992,1747625460228,-500.0,0.00013917,2]
[361586993,1747625460237,-500.0,0.00013917,2]
[361586994,1747625460246,-500.0,0.00013917,2]
[361586995,1747625460255,-500.0,0.00013917,2]
[361586996,1747625460263,-500.0,0.00013917,2]
[361586997,1747625460272,-500.0,0.00013917,2]
[361586998,1747625460282,-1237.664177,0.00013917,2]
[361586999,1747625460291,-500.0,0.00013917,2]
[361587000,1747625460301,-500.0,0.00013917,2]
[361587001,1747625460310,-200.0,0.00013917,2]
[361587002,1747625460319,-500.0,0.00013917,2]
[361587003,1747625460328,-500.0,0.00013917,2]
[361587004,1747625460337,-147.24329928,0.00013917,2]
[361587005,1747625460366,-352.75670072,0.00013917,2]
[361587006,1747625460375,-500.0,0.00013917,2]
[361587007,1747625460385,-500.0,0.00013917,2]
[361587008,1747625460396,-500.0,0.00013917,2]
[361587009,1747625460406,-500.0,0.00013917,2]
[361587010,1747625460416,-500.0,0.00013917,2]
[361587011,1747625460426,-500.0,0.00013917,2]
[361587012,1747625460436,-500.0,0.00013917,2]
[361587013,1747625460445,-500.0,0.00013917,2]
[361587014,1747625460454,-500.0,0.00013917,2]
[361587015,1747625460464,-500.0,0.00013917,2]
[361587016,1747625460473,-500.0,0.00013917,2]
[361587017,1747625460483,-500.0,0.00013917,2]
[361587018,1747625460492,-500.0,0.00013917,2]
[361587019,1747625460502,-500.0,0.00013917,2]
[361587020,1747625460511,-500.0,0.00013917,2]
[361587021,1747625460520,-500.0,0.00013917,2]
[361587022,1747625460530,-500.0,0.00013917,2]
[361587023,1747625460539,-500.0,0.00013917,2]
[361587024,1747625460548,-500.0,0.00013917,2]
[361587025,1747625460559,-500.0,0.00013917,2]
[361587026,1747625460568,-500.0,0.00013917,2]
[361587027,1747625460577,-500.0,0.00013917,2]
[361587028,1747625460589,-500.0,0.00013917,2]
[361587029,1747625460597,-500.0,0.00013917,2]
[361587030,1747625460607,-500.0,0.00013917,2]
[361587031,1747625460617,-500.0,0.00013917,2]
[361587032,1747625460626,-500.0,0.00013917,2]
[361587033,1747625460635,-500.0,0.00013917,2]
[361587034,1747625460644,-500.0,0.00013917,2]
[361587035,1747625460654,-500.0,0.00013917,2]
[361587036,1747625460663,-500.0,0.00013917,2]
[361587037,1747625460672,-500.0,0.00013917,2]
[361587038,1747625460682,-500.0,0.00013917,2]
[361587039,1747625460691,-500.0,0.00013917,2]
[361587040,1747625460701,-500.0,0.00013917,2]
[361587041,1747625460710,-500.0,0.00013917,2]
[361587042,1747625460720,-660.4499403,0.00013917,2]
[361587043,1747625460735,-299.50068255,0.00013917,2]
[361587044,1747625461407,-400.0,0.00013698,2]
[361587045,1747625461417,-658.63,0.00013698,2]
[361587046,1747625461427,-658.63,0.00013808,2]
[361587047,1747625461436,-97.55547415,0.00013917,2]
[361587048,1747625461446,-500.0,0.00013917,2]
[361587049,1747625461455,-500.0,0.00013917,2]
[361587050,1747625461465,-500.0,0.00013917,2]
[361587051,1747625461476,-500.0,0.00013917,2]
[361587052,1747625461485,-500.0,0.00013917,2]
[361587053,1747625461494,-500.0,0.00013917,2]
[361587054,1747625461503,-500.0,0.00013917,2]
[361587055,1747625461513,-500.0,0.00013917,2]
[361587056,1747625461523,-500.0,0.00013917,2]
[361587057,1747625461532,-500.0,0.00013917,2]
[361587058,1747625461542,-500.0,0.00013917,2]
[361587059,1747625461553,-500.0,0.00013917,2]
[361587060,1747625461562,-500.0,0.00013917,2]
[361587061,1747625461572,-500.0,0.00013917,2]
[361587062,1747625461581,-500.0,0.00013917,2]
[361587063,1747625461591,-500.0,0.00013917,2]
[361587064,1747625461600,-500.0,0.00013917,2]
[361587065,1747625461609,-500.0,0.00013917,2]
[361587066,1747625461619,-500.0,0.00013917,2]
[361587067,1747625461628,-500.0,0.00013917,2]
[361587068,1747625461637,-500.0,0.00013917,2]
[361587069,1747625461646,-500.0,0.00013917,2]
[361587070,1747625461655,-500.0,0.00013917,2]
[361587071,1747625461664,-500.0,0.00013917,2]
[361587072,1747625461673,-500.0,0.00013917,2]
[361587073,1747625461682,-400.0,0.00013917,2]
[361587074,1747625461692,-500.0,0.00013917,2]
[361587075,1747625461703,-500.0,0.00013917,2]
[361587076,1747625461713,-500.0,0.00013917,2]
[361587077,1747625461723,-500.0,0.00013917,2]
[361587078,1747625462077,-500.0,0.00013917,2]
[361587079,1747625462088,-500.0,0.00013917,2]
[361587080,1747625462098,-500.0,0.00013917,2]
[361587081,1747625462107,-500.0,0.00013917,2]
[361587082,1747625462117,-500.0,0.00013917,2]
[361587083,1747625462126,-500.0,0.00013917,2]
[361587084,1747625462136,-455.41,0.00013917,2]
[361587085,1747625462146,-500.0,0.00013917,2]
[361587086,1747625462156,-500.0,0.00013917,2]
[361587087,1747625462167,-500.0,0.00013917,2]
[361587088,1747625462177,-500.0,0.00013917,2]
[361587089,1747625462187,-500.0,0.00013917,2]
[361587090,1747625462197,-500.0,0.00013917,2]
[361587091,1747625462206,-400.0,0.00013917,2]
[361587092,1747625462216,-500.0,0.00013917,2]
[361587093,1747625462226,-500.0,0.00013917,2]
[361587094,1747625462236,-400.0,0.00013917,2]
[361587095,1747625462246,-500.0,0.00013917,2]
[361587096,1747625462255,-500.0,0.00013917,2]
[361587097,1747625462265,-618.0,0.00013917,2]
[361587098,1747625462275,-400.0,0.00013917,2]
[361587099,1747625462284,-400.0,0.00013917,2]
[361587100,1747625462293,-400.0,0.00013917,2]
[361587101,1747625462303,-400.0,0.00013917,2]
[361587102,1747625462313,-443.73,0.00013917,2]
[361587103,1747625462323,-400.0,0.00013917,2]
[361587104,1747625462333,-400.0,0.00013917,2]
[361587105,1747625462342,-544.39,0.00013917,2]
[361587106,1747625462352,-577.15,0.00013917,2]
[361587107,1747625462362,-400.0,0.00013917,2]
[361587108,1747625462372,-464.99,0.00013917,2]
[361587109,1747625462381,-507.99,0.00013917,2]
[361587110,1747625462391,-400.0,0.00013917,2]
[361587111,1747625462400,-784.77,0.00013917,2]
[361587112,1747625462410,-476.4,0.00013917,2]
[361587113,1747625462421,-400.0,0.00013917,2]
[361587114,1747625462430,-400.0,0.00013917,2]
[361587115,1747625462440,-400.0,0.00013917,2]
[361587116,1747625462452,-253.58,0.00013917,2]
[361587117,1747625462462,-400.0,0.00013917,2]
[361587118,1747625462471,-327.56622153,0.00013917,2]
[361587119,1747625462481,-400.0,0.00013917,2]
[361587120,1747625462490,-400.0,0.00013917,2]
[361587121,1747625462501,-298.97508239,0.00013917,2]
[361587122,1747625462512,-400.0,0.00013917,2]
[361587123,1747625462522,-400.56204239,0.00013917,2]
[361587124,1747625462531,-400.0,0.00013917,2]
[361587125,1747625462541,-560.46,0.00013917,2]
[361587126,1747625462551,-912.6,0.00013917,2]
[361587127,1747625462560,-567.94,0.00013917,2]
[361587128,1747625462570,-400.0,0.00013917,2]
[361587129,1747625462579,-400.0,0.00013917,2]
[361587130,1747625462589,-400.0,0.00013917,2]
[361587131,1747625462598,-400.0,0.00013917,2]
[361587132,1747625462608,-217.32439257,0.00013917,2]
[361587133,1747625462618,-400.0,0.00013917,2]
[361587134,1747625462627,-408.28803709,0.00013917,2]
[361587135,1747625462637,-400.0,0.00013917,2]
[361587136,1747625462646,-400.0,0.00013917,2]
[361587137,1747625462656,-400.0,0.00013917,2]
[361587138,1747625462666,-400.0,0.00013917,2]
[361587139,1747625462676,-425.98,0.00013917,2]
[361587140,1747625462686,-400.0,0.00013917,2]
[361587141,1747625462695,-190.73516941,0.00013917,2]
[361587142,1747625462705,-400.0,0.00013917,2]
[361587143,1747625462715,-400.0,0.00013917,2]
[361587144,1747625462724,-561.49,0.00013917,2]
[361587145,1747625462734,-400.0,0.00013917,2]
[361587146,1747625462744,-480.09,0.00013917,2]
[361587147,1747625462753,-400.0,0.00013917,2]
[361587148,1747625462763,-446.97,0.00013917,2]
[361587149,1747625462772,-400.0,0.00013917,2]
[361587150,1747625462782,-400.0,0.00013917,2]
[361587151,1747625462792,-700.52,0.00013917,2]
[361587152,1747625462801,-427.74,0.00013917,2]
[361587153,1747625462810,-400.0,0.00013917,2]
[361587154,1747625462821,-446.58,0.00013917,2]
[361587155,1747625462830,-426.68,0.00013917,2]
[361587156,1747625462840,-400.0,0.00013917,2]
[361587157,1747625462849,-400.0,0.00013917,2]
[361587158,1747625462860,-400.0,0.00013917,2]
[361587159,1747625462873,-498.45029562,0.00013917,2]
[361587160,1747625462882,-400.0,0.00013917,2]
[361587161,1747625462893,-400.0,0.00013917,2]
[361587162,1747625462903,-634.24,0.00013917,2]
[361587163,1747625462913,-400.0,0.00013917,2]
[361587164,1747625462923,-400.0,0.00013917,2]
[361587165,1747625462933,-413.8114981,0.00013917,2]
[361587166,1747625462942,-400.0,0.00013917,2]
[361587167,1747625462953,-400.0,0.00013917,2]
[361587168,1747625462963,-400.0,0.00013917,2]
[361587169,1747625462973,-453.13386483,0.00013917,2]
[361587170,1747625462983,-400.0,0.00013917,2]
[361587171,1747625462992,-400.0,0.00013917,2]
[361587172,1747625463002,-400.0,0.00013917,2]
[361587173,1747625463012,-400.0,0.00013917,2]
[361587174,1747625463021,-400.0,0.00013917,2]
[361587175,1747625463031,-483.6833285,0.00013917,2]
[361587176,1747625463042,-400.0,0.00013917,2]
[361587177,1747625463052,-460.6625634,0.00013917,2]
[361587178,1747625463062,-400.0,0.00013917,2]
[361587179,1747625463073,-599.08,0.00013917,2]
[361587180,1747625463083,-400.0,0.00013917,2]
[361587181,1747625463093,-400.0,0.00013917,2]
[361587182,1747625463104,-400.0,0.00013917,2]
[361587183,1747625463113,-877.94,0.00013917,2]
[361587184,1747625463123,-400.0,0.00013917,2]
[361587185,1747625463133,-400.0,0.00013917,2]
[361587186,1747625463143,-400.0,0.00013917,2]
[361587187,1747625463153,-400.0,0.00013917,2]
[361587188,1747625463163,-407.64282188,0.00013917,2]
[361587189,1747625463172,-400.0,0.00013917,2]
[361587190,1747625463182,-439.49923491,0.00013917,2]
[361587191,1747625463192,-200.0,0.00013917,2]
[361587192,1747625463202,-761.73,0.00013917,2]
[361587193,1747625463212,-400.0,0.00013917,2]
[361587194,1747625463222,-400.0,0.00013917,2]
[361587195,1747625463232,-177.52187833,0.00013917,2]
[361587196,1747625463242,-400.0,0.00013917,2]
[361587197,1747625463252,-400.0,0.00013917,2]
[361587198,1747625463261,-541.08,0.00013917,2]
[361587199,1747625463271,-400.0,0.00013917,2]
[361587200,1747625463280,-280.39477685,0.00013917,2]
[361587201,1747625463289,-669.17,0.00013917,2]
[361587202,1747625463298,-400.0,0.00013917,2]
[361587203,1747625463308,-401.42,0.00013917,2]
[361587204,1747625463317,-400.0,0.00013917,2]
[361587205,1747625463326,-400.0,0.00013917,2]
[361587206,1747625463336,-400.0,0.00013917,2]
[361587207,1747625463345,-400.0,0.00013917,2]
[361587208,1747625463355,-506.04,0.00013917,2]
[361587209,1747625463365,-447.25,0.00013917,2]
[361587210,1747625463375,-893.19,0.00013917,2]
[361587211,1747625463384,-436.63,0.00013917,2]
[361587212,1747625463394,-532.75,0.00013917,2]
[361587213,1747625463404,-400.0,0.00013917,2]
[361587214,1747625463413,-400.0,0.00013917,2]
[361587215,1747625463422,-400.0,0.00013917,2]
[361587216,1747625463432,-402.28,0.00013917,2]
[361587217,1747625463441,-547.37,0.00013917,2]
[361587218,1747625463451,-769.29,0.00013917,2]
[361587219,1747625463463,-726.68,0.00013917,2]
[361587220,1747625463473,-400.0,0.00013917,2]
[361587221,1747625463483,-400.0,0.00013917,2]
[361587222,1747625463492,-560.61,0.00013917,2]
[361587223,1747625463501,-400.0,0.00013917,2]
[361587224,1747625463511,-434.38,0.00013917,2]
[361587225,1747625463520,-539.76,0.00013917,2]
[361587226,1747625463530,-457.36,0.00013917,2]
[361587227,1747625463540,-400.0,0.00013917,2]
[361587228,1747625463549,-400.0,0.00013917,2]
[361587229,1747625463559,-400.0,0.00013917,2]
[361587230,1747625463569,-658.94,0.00013917,2]
[361587231,1747625463579,-400.0,0.00013917,2]
[361587232,1747625463589,-400.0,0.00013917,2]
[361587233,1747625463599,-400.0,0.00013917,2]
[361587234,1747625463609,-400.0,0.00013917,2]
[361587235,1747625463621,-400.0,0.00013917,2]
[361587236,1747625463631,-448.2,0.00013917,2]
[361587237,1747625463641,-801.61,0.00013917,2]
[361587238,1747625463652,-558.61,0.00013917,2]
[361587239,1747625463661,-839.34,0.00013917,2]
[361587240,1747625463671,-400.0,0.00013917,2]
[361587241,1747625463681,-400.0,0.00013917,2]
[361587242,1747625463692,-1127.87,0.00013917,2]
[361587243,1747625463703,-400.0,0.00013917,2]
[361587244,1747625463713,-451.39,0.00013917,2]
[361587245,1747625463722,-449.15,0.00013917,2]
[361587246,1747625463732,-745.8,0.00013917,2]
[361587247,1747625463743,-400.0,0.00013917,2]
[361587248,1747625463752,-378.57097573,0.00013917,2]
[361587249,1747625463762,-400.0,0.00013917,2]
[361587250,1747625463772,-412.75,0.00013917,2]
[361587251,1747625463783,-400.0,0.00013917,2]
[361587252,1747625463793,-412.07635023,0.00013917,2]
[361587253,1747625463803,-404.19321561,0.00013917,2]
[361587254,1747625463813,-541.86,0.00013917,2]
[361587255,1747625463823,-808.09,0.00013917,2]
[361587256,1747625463833,-512.01,0.00013917,2]
[361587257,1747625463843,-1302.22,0.00013917,2]
[361587258,1747625463854,-658.86,0.00013917,2]
[361587259,1747625463868,-408.6,0.00013917,2]
[361587260,1747625463878,-556.47,0.00013917,2]
[361587261,1747625463890,-1138.86,0.00013917,2]
[361587262,1747625463901,-539.07,0.00013917,2]
[361587263,1747625463912,-565.81,0.00013917,2]
[361587264,1747625463922,-563.71,0.00013917,2]
[361587265,1747625463933,-400.0,0.00013917,2]
[361587266,1747625463943,-456.06577015,0.00013917,2]
[361587267,1747625463955,-434.85,0.00013917,2]
[361587268,1747625463965,-530.76552719,0.00013917,2]
[361587269,1747625463975,-474.74,0.00013917,2]
[361587270,1747625463985,-961.51,0.00013917,2]
[361587271,1747625463995,-522.38,0.00013917,2]
[361587272,1747625464005,-449.34,0.00013917,2]
[361587273,1747625464016,-400.0,0.00013917,2]
[361587274,1747625464026,-400.0,0.00013917,2]
[361587275,1747625464036,-485.9,0.00013917,2]
[361587276,1747625464045,-726.66,0.00013917,2]
[361587277,1747625464055,-853.22,0.00013917,2]
[361587278,1747625464065,-400.0,0.00013917,2]
[361587279,1747625464074,-510.47292699,0.00013917,2]
[361587280,1747625464084,-400.0,0.00013917,2]
[361587281,1747625464094,-400.0,0.00013917,2]
[361587282,1747625464103,-529.01,0.00013917,2]
[361587283,1747625464113,-448.98,0.00013917,2]
[361587284,1747625464123,-400.0,0.00013917,2]
[361587285,1747625464133,-602.28,0.00013917,2]
[361587286,1747625464143,-400.0,0.00013917,2]
[361587287,1747625464152,-615.38,0.00013917,2]
[361587288,1747625464162,-474.33808855,0.00013917,2]
[361587289,1747625464172,-873.26,0.00013917,2]
[361587290,1747625464181,-524.5,0.00013917,2]
[361587291,1747625464191,-400.0,0.00013917,2]
[361587292,1747625464201,-400.0,0.00013917,2]
[361587293,1747625464211,-697.98,0.00013917,2]
[361587294,1747625464221,-712.18,0.00013917,2]
[361587295,1747625464230,-462.05,0.00013917,2]
[361587296,1747625464240,-178.9277915,0.00013917,2]
[361587297,1747625464249,-555.65,0.00013917,2]
[361587298,1747625464258,-699.79,0.00013917,2]
[361587299,1747625464268,-1172.06,0.00013917,2]
[361587300,1747625464277,-558.31,0.00013917,2]
[361587301,1747625464286,-400.0,0.00013917,2]
[361587302,1747625464295,-424.75,0.00013917,2]
[361587303,1747625464305,-400.0,0.00013917,2]
[361587304,1747625464318,-400.0,0.00013917,2]
[361587305,1747625464328,-1270.88,0.00013917,2]
[361587306,1747625464338,-400.0,0.00013917,2]
[361587307,1747625464348,-400.0,0.00013917,2]
[361587308,1747625464359,-400.0,0.00013917,2]
[361587309,1747625464368,-400.0,0.00013917,2]
[361587310,1747625464378,-786.49,0.00013917,2]
[361587311,1747625464389,-1197.51,0.00013917,2]
[361587312,1747625464399,-791.35,0.00013917,2]
[361587313,1747625464408,-557.29,0.00013917,2]
[361587314,1747625464418,-420.55,0.00013917,2]
[361587315,1747625464427,-400.0,0.00013917,2]
[361587316,1747625464436,-518.5,0.00013917,2]
[361587317,1747625464446,-276.26,0.00013917,2]
[361587318,1747625464455,-1193.15,0.00013917,2]
[361587319,1747625464539,-400.0,0.00013917,2]
[361587320,1747625464549,-539.87,0.00013917,2]
[361587321,1747625464559,-400.0,0.00013917,2]
[361587322,1747625464568,-1418.61,0.00013917,2]
[361587323,1747625464578,-1103.23,0.00013917,2]
[361587324,1747625464587,-151.0,0.00013917,2]
[361587325,1747625464597,-400.0,0.00013917,2]
[361587326,1747625464606,-524.66,0.00013917,2]
[361587327,1747625464616,-400.0,0.00013917,2]
[361587328,1747625464626,-2112.05,0.00013917,2]
[361587329,1747625464635,-410.51956789,0.00013917,2]
[361587330,1747625464645,-846.5,0.00013917,2]
[361587331,1747625464654,-1124.98,0.00013917,2]
[361587332,1747625464664,-195.74,0.00013917,2]
[361587333,1747625464673,-400.0,0.00013917,2]
[361587334,1747625464682,-400.0,0.00013917,2]
[361587335,1747625464692,-1461.56,0.00013917,2]
[361587336,1747625464703,-400.0,0.00013917,2]
[361587337,1747625464712,-551.17,0.00013917,2]
[361587338,1747625464722,-400.0,0.00013917,2]
[361587339,1747625464731,-497.62,0.00013917,2]
[361587340,1747625464740,-819.64,0.00013917,2]
[361587341,1747625464749,-400.0,0.00013917,2]
[361587342,1747625464759,-424.66,0.00013917,2]
[361587343,1747625464768,-493.66,0.00013917,2]
[361587344,1747625464778,-431.58,0.00013917,2]
[361587345,1747625464787,-450.15,0.00013917,2]
[361587346,1747625464796,-465.15,0.00013917,2]
[361587347,1747625464805,-400.0,0.00013917,2]
[361587348,1747625464815,-1388.11,0.00013917,2]
[361587349,1747625464824,-400.0,0.00013917,2]
[361587350,1747625464834,-501.11,0.00013917,2]
[361587351,1747625464843,-416.72795316,0.00013917,2]
[361587352,1747625464852,-151.0,0.00013917,2]
[361587353,1747625464864,-151.0,0.00013917,2]
[361587354,1747625464875,-439.42,0.00013917,2]
[361587355,1747625464884,-568.27,0.00013917,2]
[361587356,1747625464894,-1002.81,0.00013917,2]
[361587357,1747625464903,-506.99,0.00013917,2]
[361587358,1747625464912,-400.0,0.00013917,2]
[361587359,1747625464922,-721.58,0.00013917,2]
[361587360,1747625464931,-181.705694,0.00013917,2]
[361587361,1747625464942,-1549.43,0.00013917,2]
[361587362,1747625464952,-151.0,0.00013917,2]
[361587363,1747625464961,-400.0,0.00013917,2]
[361587364,1747625464971,-400.0,0.00013917,2]
[361587365,1747625464980,-181.705694,0.00013917,2]
[361587366,1747625464990,-636.4,0.00013917,2]
[361587367,1747625464999,-400.0,0.00013917,2]
[361587368,1747625465008,-400.0,0.00013917,2]
[361587369,1747625465017,-400.0,0.00013917,2]
[361587370,1747625465027,-909.35,0.00013917,2]
[361587371,1747625465036,-400.0,0.00013917,2]
[361587372,1747625465046,-410.43202341,0.00013917,2]
[361587373,1747625465055,-400.0,0.00013917,2]
[361587374,1747625465064,-452.14,0.00013917,2]
[361587375,1747625465074,-400.0,0.00013917,2]
[361587376,1747625465083,-400.0,0.00013917,2]
[361587377,1747625465093,-1077.24,0.00013917,2]
[361587378,1747625465102,-1207.27,0.00013917,2]
[361587379,1747625465110,-637.37,0.00013917,2]
[361587380,1747625465120,-400.0,0.00013917,2]
[361587381,1747625465128,-527.02,0.00013917,2]
[361587382,1747625465137,-424.36,0.00013917,2]
[361587383,1747625465147,-690.45,0.00013917,2]
[361587384,1747625465156,-400.0,0.00013917,2]
[361587385,1747625465166,-400.0,0.00013917,2]
[361587386,1747625465175,-400.0,0.00013917,2]
[361587387,1747625465184,-400.0,0.00013917,2]
[361587388,1747625465193,-151.0,0.00013917,2]
[361587389,1747625465203,-494.4,0.00013917,2]
[361587390,1747625465213,-859.59,0.00013917,2]
[361587391,1747625465222,-400.0,0.00013917,2]
[361587392,1747625465231,-433.89,0.00013917,2]
[361587393,1747625465240,-441.47,0.00013917,2]
[361587394,1747625465249,-235.94177303,0.00013917,2]
[361587395,1747625465259,-791.91,0.00013917,2]
[361587396,1747625465269,-610.21,0.00013917,2]
[361587397,1747625465279,-448.92,0.00013917,2]
[361587398,1747625465288,-786.31,0.00013917,2]
[361587399,1747625465297,-151.0,0.00013917,2]
[361587400,1747625465307,-628.29,0.00013917,2]
[361587401,1747625465317,-466.27,0.00013917,2]
[361587402,1747625465327,-548.8,0.00013917,2]
[361587403,1747625465336,-1059.46,0.00013917,2]